[Event "Niedersachsen-ch A 2024"]
[Site "Verden Aller"]
[Date "2024.01.04"]
[Round "2.18"]
[White "Weigand, Anton"]
[Black "Aden, Dagmar"]
[Result "1-0"]
[ECO "B07"]
[WhiteElo "2013"]
[BlackElo "1766"]
[Annotator "NA RC"]
[PlyCount "95"]
[EventDate "2024.01.01"]
[EventType "swiss"]
[EventCountry "GER"]
[SourceTitle "playchess.com"]
[Source "ChessBase"]
[SourceQuality "1"]
[TimeControl "40/5400+30:1800+30"]

1. e4 {[%emt 0:00:03]} g6 {[%emt 0:00:13]} 2. d4 {[%emt 0:00:19]} Bg7 {[%emt 0:00:21]} 3. Nc3 {[%emt 0:01:26]} d6 {[%emt 0:01:21]} 4. Be3 {[%emt 0:00:21]} Nf6 {[%emt 0:01:01]} 5. Qd2 {[%emt 0:00:59]} Ng4 {[%emt 0:01:55]} 6. Bg5 {[%emt 0:02:32]} h6 {[%emt 0:01:25]} 7. Bh4 {[%emt 0:00:02]} g5 {[%emt 0:04:29]} 8. Bg3 {[%emt 0:00:09]} e5 {[%emt 0:02:33]} 9. d5 {[%emt 0:01:51]} c6 {[%emt 0:05:53]} 10. O-O-O {[%emt 0:07:04]} c5 {[%emt 0:01:55]} 11. f3 {[%emt 0:06:53]} Nf6 {[%emt 0:00:23]} 12. Kb1 {[%emt 0:02:46]} Nbd7 {[%emt 0:01:53]} 13. Nge2 {[%emt 0:03:47]} Nb6 {[%emt 0:01:55]} 14. Bf2 {[%emt 0:02:22]} Bd7 {[%emt 0:02:19]} 15. Ng3 {[%emt 0:00:38]} a6 {[%emt 0:04:01]} 16. Ka1 {[%emt 0:03:49]} Qc7 {[%emt 0:03:14]} 17. Rb1 {[%emt 0:00:24]} Nc8 {[%emt 0:03:24]} 18. b4 {[%emt 0:08:55]} cxb4 {[%emt 0:01:42]} 19. Rxb4 {[%emt 0:00:17]} b5 {[%emt 0:01:17]} 20. Be2 {[%emt 0:05:24]} Ne7 {[%emt 0:02:21]} 21. Nd1 {[%emt 0:04:51]} a5 {[%emt 0:04:51]} 22. Rb2 {[%emt 0:00:19]} b4 {[%emt 0:01:42]} 23. Ne3 {[%emt 0:00:09]} O-O {[%emt 0:02:34]} 24. h4 {[%emt 0:03:02]} Nh7 {[%emt 0:04:04]} 25. Nc4 {[%emt 0:04:47]} Rab8 {[%emt 0:02:46]} 26. hxg5 {[%emt 0:05:02]} Nxg5 {[%emt 0:01:12]} 27. Be3 {[%emt 0:03:11]} f6 {[%emt 0:02:45]} 28. Rc1 {[%emt 0:02:12]} Bb5 {[%emt 0:02:18]} 29. c3 {[%emt 0:03:28]} Bxc4 {[%emt 0:03:37]} 30. cxb4 {[%emt 0:00:09]} Rxb4 {[%emt 0:01:22]} 31. Rxb4 {[%emt 0:00:18]} axb4 {[%emt 0:00:07]} 32. Rxc4 {[%emt 0:00:16]} Qa5 {[%emt 0:01:12]} 33. Qxb4 {[%emt 0:00:45]} Qxb4 {[%emt 0:01:00]} 34. Rxb4 {[%emt 0:00:08]} f5 {[%emt 0:01:44]} 35. Bb6 {[%emt 0:03:15]} fxe4 {[%emt 0:02:37]} 36. fxe4 {[%emt 0:00:08]} Ng6 {[%emt 0:03:53]} 37. a4 {[%emt 0:03:22]} Nf4 {[%emt 0:02:33]} 38. Bf1 {[%emt 0:02:43]} Rc8 {[%emt 0:02:28]} 39. Rc4 {[%emt 0:03:39]} Ra8 {[%emt 0:02:30]} 40. a5 {[%emt 0:00:12]} Bf6 {[%emt 0:00:53]} 41. Ra4 {[%emt 0:32:23]} Nf7 {[%emt 0:32:43]} 42. Nf5 {[%emt 0:02:28]} Ng6 {[%emt 0:01:38]} 43. a6 {[%emt 0:00:41]} Ne7 {[%emt 0:01:31]} 44. Nxe7+ {[%emt 0:01:55]} Bxe7 {[%emt 0:00:08]} 45. Bb5 {[%emt 0:01:09]} Nd8 {[%emt 0:01:18]} 46. a7 {[%emt 0:03:10]} Kf8 {[%emt 0:02:13]} 47. Bxd8 {[%emt 0:00:18]} Bxd8 {[%emt 0:00:13]} 48. Bc6 {[%emt 0:00:05]} 1-0

[Event "Niedersachsen-ch A 2024"]
[Site "Verden Aller"]
[Date "2024.01.04"]
[Round "2.19"]
[White "Kiesel, Harald"]
[Black "Gehrke, Mathias"]
[Result "1-0"]
[ECO "B22"]
[WhiteElo "1975"]
[BlackElo "1761"]
[Annotator "NA RC"]
[PlyCount "83"]
[EventDate "2024.01.01"]
[EventType "swiss"]
[EventCountry "GER"]
[SourceTitle "playchess.com"]
[Source "ChessBase"]
[SourceQuality "1"]
[TimeControl "40/5400+30:1800+30"]

1. e4 {[%emt 0:00:30]} c5 {[%emt 0:00:08]} 2. Nf3 {[%emt 0:00:00]} e6 {[%emt 0:00:09]} 3. c3 {[%emt 0:00:43]} Nf6 {[%emt 0:01:11]} 4. e5 {[%emt 0:00:10]} Nd5 {[%emt 0:00:07]} 5. d4 {[%emt 0:00:19]} cxd4 {[%emt 0:00:08]} 6. cxd4 {[%emt 0:00:05]} Bb4+ {[%emt 0:00:37]} 7. Bd2 {[%emt 0:01:17]} Bxd2+ {[%emt 0:01:13]} 8. Qxd2 {[%emt 0:01:53]} Nc6 {[%emt 0:00:45]} 9. Nc3 {[%emt 0:08:34]} Nxc3 {[%emt 0:01:23]} 10. bxc3 {[%emt 0:00:06]} d5 {[%emt 0:01:02]} 11. Bd3 {[%emt 0:02:38]} h6 {[%emt 0:02:27]} 12. O-O {[%emt 0:02:03]} Qa5 {[%emt 0:03:40]} 13. Rac1 {[%emt 0:03:52]} b6 {[%emt 0:01:46]} 14. Qe2 {[%emt 0:01:22]} Qa3 {[%emt 0:02:47]} 15. Nh4 {[%emt 0:07:45]} Qe7 {[%emt 0:03:00]} 16. g3 {[%emt 0:02:01]} Bd7 {[%emt 0:04:09]} 17. f4 {[%emt 0:01:32]} g5 {[%emt 0:04:14]} 18. Ng2 {[%emt 0:03:57]} Rc8 {[%emt 0:06:30]} 19. Ne3 {[%emt 0:05:55]} h5 {[%emt 0:02:19]} 20. f5 {[%emt 0:06:34]} g4 {[%emt 0:04:31]} 21. fxe6 {[%emt 0:05:12]} fxe6 {[%emt 0:00:17]} 22. Bg6+ {[%emt 0:05:48]} Kd8 {[%emt 0:00:04]} 23. Qd3 {[%emt 0:02:54]} Be8 {[%emt 0:01:10]} 24. Bxe8 {[%emt 0:03:30]} Qxe8 {[%emt 0:00:39]} 25. Rf6 {[%emt 0:07:30]} Rf8 {[%emt 0:58:44]} 26. Rcf1 {[%emt 0:01:14]} Rxf6 {[%emt 0:00:00]} 27. Rxf6 {[%emt 0:04:40]} Rc7 {[%emt 0:00:00]} 28. Qf1 {[%emt 0:11:44]} Kd7 {[%emt 0:00:00]} 29. Rf7+ {[%emt 0:03:35]} Ne7 {[%emt 0:00:00]} 30. c4 {[%emt 0:00:58]} Kc6 {[%emt 0:00:00]} 31. Qf6 {[%emt 0:02:42]} Kb7 {[%emt 0:00:00]} 32. Qxe6 {[%emt 0:00:31]} dxc4 {[%emt 0:00:00]} 33. d5 {[%emt 0:03:00]} Qb5 {[%emt 0:00:00]} 34. Rxe7 {[%emt 0:02:56]} Qb1+ {[%emt 0:00:00]} 35. Nf1 {[%emt 0:00:00]} Rxe7 {[%emt 0:00:00]} 36. Qxe7+ {[%emt 0:00:00]} Ka6 {[%emt 0:00:00]} 37. Qa3+ {[%emt 0:00:00]} Kb5 {[%emt 0:00:00]} 38. e6 {[%emt 0:00:46]} Qe4 {[%emt 0:00:00]} 39. e7 {[%emt 0:00:18]} c3 {[%emt 0:00:00]} 40. Qb3+ {[%emt 0:00:53]} Kc5 {[%emt 0:00:00]} 41. Qxc3+ {[%emt 0:30:42]} Kxd5 {[%emt 0:00:00]} 42. Qe3 {[%emt 0:00:30]} 1-0

[Event "Niedersachsen-ch A 2024"]
[Site "Verden Aller"]
[Date "2024.01.04"]
[Round "2.20"]
[White "Kelemen, Alexander"]
[Black "Ehlert, Horst"]
[Result "1/2-1/2"]
[ECO "A37"]
[WhiteElo "1817"]
[BlackElo "1940"]
[Annotator "NA RC"]
[PlyCount "74"]
[EventDate "2024.01.01"]
[EventType "swiss"]
[EventCountry "GER"]
[SourceTitle "playchess.com"]
[Source "ChessBase"]
[SourceQuality "1"]
[TimeControl "40/5400+30:1800+30"]

1. Nf3 {[%emt 0:00:32]} c5 {[%emt 0:00:30]} 2. g3 {[%emt 0:00:10]} Nc6 {[%emt 0:00:42]} 3. Bg2 {[%emt 0:00:14]} g6 {[%emt 0:01:43]} 4. c4 {[%emt 0:00:11]} Bg7 {[%emt 0:00:20]} 5. Nc3 {[%emt 0:00:11]} e5 {[%emt 0:04:46]} 6. a3 {[%emt 0:03:30]} Nge7 {[%emt 0:00:13]} 7. b4 {[%emt 0:05:40]} d6 {[%emt 0:04:45]} 8. Rb1 {[%emt 0:06:33]} O-O {[%emt 0:02:34]} 9. O-O {[%emt 0:01:40]} Rb8 {[%emt 0:11:43]} 10. d3 {[%emt 0:09:36]} h6 {[%emt 0:01:56]} 11. b5 {[%emt 0:04:22]} Nd4 {[%emt 0:02:40]} 12. Nxd4 {[%emt 0:03:12]} cxd4 {[%emt 0:07:32]} 13. Nd5 {[%emt 0:00:12]} Nxd5 {[%emt 0:02:31]} 14. Bxd5 {[%emt 0:02:34]} Bh3 {[%emt 0:05:43]} 15. Re1 {[%emt 0:01:36]} Kh7 {[%emt 0:00:27]} 16. Qa4 {[%emt 0:03:39]} Qb6 {[%emt 0:00:23]} 17. Bd2 {[%emt 0:00:22]} Bd7 {[%emt 0:09:35]} 18. Ba5 {[%emt 0:00:41]} Qc5 {[%emt 0:00:16]} 19. Bb4 {[%emt 0:00:11]} Qb6 {[%emt 0:01:50]} 20. Ba5 {[%emt 0:04:51]} Qc5 {[%emt 0:00:13]} 21. Bb4 {[%emt 0:00:15]} Qb6 {[%emt 0:00:23]} 22. Qa5 {[%emt 0:00:00]} Qxa5 {[%emt 0:13:05]} 23. Bxa5 {[%emt 0:00:00]} Rfc8 {[%emt 0:00:44]} 24. Bb4 {[%emt 0:01:43]} Bf8 {[%emt 0:00:33]} 25. Bxf7 {[%emt 0:00:36]} Kg7 {[%emt 0:00:15]} 26. Bd5 {[%emt 0:00:11]} Kf6 {[%emt 0:02:17]} 27. Kg2 {[%emt 0:10:50]} Be6 {[%emt 0:01:55]} 28. Bxe6 {[%emt 0:08:03]} Kxe6 {[%emt 0:00:03]} 29. e3 {[%emt 0:00:48]} dxe3 {[%emt 0:01:25]} 30. Rxe3 {[%emt 0:01:13]} Kd7 {[%emt 0:06:00]} 31. Rf1 {[%emt 0:06:05]} h5 {[%emt 0:04:41]} 32. Re4 {[%emt 0:06:55]} a6 {[%emt 0:05:33]} 33. bxa6 {[%emt 0:03:25]} bxa6 {[%emt 0:00:06]} 34. f4 {[%emt 0:00:04]} d5 {[%emt 0:07:31]} 35. Rxe5 {[%emt 0:01:17]} Bxb4 {[%emt 0:00:45]} 36. axb4 {[%emt 0:01:33]} dxc4 {[%emt 0:00:11]} 37. dxc4 {[%emt 0:00:50]} Rxc4 {[%emt 0:03:11]} 1/2-1/2

[Event "Niedersachsen-ch A 2024"]
[Site "Verden Aller"]
[Date "2024.01.04"]
[Round "2.21"]
[White "Gottschalk, Siegfried"]
[Black "Drygala, Lars"]
[Result "1-0"]
[ECO "D35"]
[WhiteElo "1939"]
[BlackElo "1869"]
[Annotator "NA RC"]
[PlyCount "63"]
[EventDate "2024.01.01"]
[EventType "swiss"]
[EventCountry "GER"]
[SourceTitle "playchess.com"]
[Source "ChessBase"]
[SourceQuality "1"]
[TimeControl "40/5400+30:1800+30"]

1. c4 {[%emt 0:00:04]} Nf6 {[%emt 0:00:15]} 2. Nc3 {[%emt 0:00:33]} e6 {[%emt 0:00:31]} 3. d4 {[%emt 0:00:20]} d5 {[%emt 0:00:11]} 4. cxd5 {[%emt 0:00:08]} exd5 {[%emt 0:00:08]} 5. Bg5 {[%emt 0:00:05]} Be7 {[%emt 0:00:10]} 6. e3 {[%emt 0:00:11]} O-O {[%emt 0:00:21]} 7. Bd3 {[%emt 0:00:16]} b6 {[%emt 0:00:52]} 8. Bxf6 {[%emt 0:02:23]} Bxf6 {[%emt 0:00:11]} 9. Qh5 {[%emt 0:00:09]} g6 {[%emt 0:02:42]} 10. Qxd5 {[%emt 0:00:21]} c6 {[%emt 0:01:06]} 11. Qxd8 {[%emt 0:03:08]} Rxd8 {[%emt 0:00:07]} 12. Nge2 {[%emt 0:02:48]} Bb7 {[%emt 0:02:47]} 13. Be4 {[%emt 0:02:08]} Na6 {[%emt 0:02:22]} 14. O-O {[%emt 0:01:34]} Rac8 {[%emt 0:00:36]} 15. Rac1 {[%emt 0:03:48]} Nb4 {[%emt 0:02:44]} 16. a3 {[%emt 0:01:37]} Nd5 {[%emt 0:01:01]} 17. Nxd5 {[%emt 0:09:07]} cxd5 {[%emt 0:00:09]} 18. Bd3 {[%emt 0:00:04]} Kg7 {[%emt 0:05:10]} 19. Nc3 {[%emt 0:10:12]} Be7 {[%emt 0:02:08]} 20. Rc2 {[%emt 0:03:39]} f5 {[%emt 0:01:46]} 21. g3 {[%emt 0:01:34]} h5 {[%emt 0:01:06]} 22. h4 {[%emt 0:01:04]} Bf6 {[%emt 0:01:09]} 23. Rfc1 {[%emt 0:07:07]} f4 {[%emt 0:02:06]} 24. Ne2 {[%emt 0:03:23]} fxg3 {[%emt 0:01:40]} 25. Rc7+ {[%emt 0:03:59]} Kh6 {[%emt 0:01:10]} 26. fxg3 {[%emt 0:00:53]} Re8 {[%emt 0:02:48]} 27. Kf2 {[%emt 0:04:10]} Rxc7 {[%emt 0:01:55]} 28. Rxc7 {[%emt 0:00:25]} Re7 {[%emt 0:00:08]} 29. Rxe7 {[%emt 0:09:19]} Bxe7 {[%emt 0:00:06]} 30. Nf4 {[%emt 0:00:43]} g5 {[%emt 0:00:22]} 31. hxg5+ {[%emt 0:00:54]} Kxg5 {[%emt 0:00:27]} 32. Be2 {[%emt 0:00:14]} 1-0

[Event "Niedersachsen-ch A 2024"]
[Site "Verden Aller"]
[Date "2024.01.04"]
[Round "2.22"]
[White "Stein, Luis"]
[Black "Kozik, Andreas"]
[Result "1/2-1/2"]
[ECO "C00"]
[WhiteElo "1762"]
[BlackElo "1912"]
[Annotator "NA RC"]
[PlyCount "51"]
[EventDate "2024.01.01"]
[EventType "swiss"]
[EventCountry "GER"]
[SourceTitle "playchess.com"]
[Source "ChessBase"]
[SourceQuality "1"]
[TimeControl "40/5400+30:1800+30"]

1. e4 {[%emt 0:00:01]} e6 {[%emt 0:00:06]} 2. c4 {[%emt 0:00:05]} d5 {[%emt 0:00:05]} 3. cxd5 {[%emt 0:00:03]} exd5 {[%emt 0:00:06]} 4. exd5 {[%emt 0:00:04]} Nf6 {[%emt 0:00:31]} 5. Bb5+ {[%emt 0:00:05]} Nbd7 {[%emt 0:02:57]} 6. Nc3 {[%emt 0:01:17]} Be7 {[%emt 0:00:52]} 7. Nf3 {[%emt 0:01:02]} O-O {[%emt 0:00:22]} 8. d4 {[%emt 0:00:35]} Nb6 {[%emt 0:00:37]} 9. h3 {[%emt 0:00:43]} Nfxd5 {[%emt 0:01:35]} 10. O-O {[%emt 0:00:43]} c6 {[%emt 0:07:35]} 11. Bd3 {[%emt 0:01:13]} Bf6 {[%emt 0:00:45]} 12. Ne4 {[%emt 0:04:19]} Bf5 {[%emt 0:10:01]} 13. a3 {[%emt 0:14:35]} Re8 {[%emt 0:20:52]} 14. Nxf6+ {[%emt 0:09:35]} Qxf6 {[%emt 0:00:11]} 15. Qc2 {[%emt 0:12:24]} Bxd3 {[%emt 0:00:50]} 16. Qxd3 {[%emt 0:00:02]} Nf4 {[%emt 0:01:33]} 17. Bxf4 {[%emt 0:00:34]} Qxf4 {[%emt 0:00:05]} 18. Rfe1 {[%emt 0:00:27]} Nd5 {[%emt 0:02:01]} 19. Ne5 {[%emt 0:10:16]} Re7 {[%emt 0:19:04]} 20. Re4 {[%emt 0:07:41]} Qf6 {[%emt 0:02:37]} 21. Rae1 {[%emt 0:01:36]} Rae8 {[%emt 0:03:43]} 22. Ng4 {[%emt 0:08:20]} Qd6 {[%emt 0:10:15]} 23. Rxe7 {[%emt 0:06:05]} Rxe7 {[%emt 0:00:10]} 24. Rxe7 {[%emt 0:00:38]} Qxe7 {[%emt 0:01:03]} 25. Ne3 {[%emt 0:00:27]} Qg5 {[%emt 0:08:27]} 26. Qe4 {[%emt 0:20:40]} 1/2-1/2

[Event "Niedersachsen-ch A 2024"]
[Site "Verden Aller"]
[Date "2024.01.04"]
[Round "2.23"]
[White "Moller, Tomas"]
[Black "Bisa, Gani"]
[Result "1-0"]
[ECO "A45"]
[WhiteElo "1553"]
[BlackElo "1931"]
[Annotator "NA RC"]
[PlyCount "63"]
[EventDate "2024.01.01"]
[EventType "swiss"]
[EventCountry "GER"]
[SourceTitle "playchess.com"]
[Source "ChessBase"]
[SourceQuality "1"]
[TimeControl "40/5400+30:1800+30"]

1. d4 {[%emt 0:00:02]} Nf6 {[%emt 0:00:07]} 2. Nc3 {[%emt 0:00:07]} e6 {[%emt 0:00:12]} 3. Bf4 {[%emt 0:00:07]} Bb4 {[%emt 0:00:42]} 4. Qd3 {[%emt 0:00:17]} b6 {[%emt 0:00:34]} 5. f3 {[%emt 0:07:07]} O-O {[%emt 0:00:47]} 6. e4 {[%emt 0:01:51]} Ba6 {[%emt 0:00:19]} 7. Qe3 {[%emt 0:01:20]} Bxf1 {[%emt 0:00:29]} 8. Kxf1 {[%emt 0:00:09]} d6 {[%emt 0:00:18]} 9. Nge2 {[%emt 0:03:01]} Nbd7 {[%emt 0:00:55]} 10. g4 {[%emt 0:07:38]} e5 {[%emt 0:00:32]} 11. Bg5 {[%emt 0:01:25]} exd4 {[%emt 0:00:29]} 12. Nxd4 {[%emt 0:00:13]} Bc5 {[%emt 0:00:16]} 13. b4 {[%emt 0:01:27]} Bxd4 {[%emt 0:00:44]} 14. Qxd4 {[%emt 0:00:07]} Ne5 {[%emt 0:00:12]} 15. Kg2 {[%emt 0:01:12]} h6 {[%emt 0:00:54]} 16. Bh4 {[%emt 0:00:56]} g5 {[%emt 0:00:44]} 17. Bg3 {[%emt 0:00:50]} Ng6 {[%emt 0:00:53]} 18. Rad1 {[%emt 0:03:14]} Qe7 {[%emt 0:00:20]} 19. h4 {[%emt 0:01:55]} Rad8 {[%emt 0:03:12]} 20. hxg5 {[%emt 0:00:48]} hxg5 {[%emt 0:00:03]} 21. b5 {[%emt 0:01:04]} Ne5 {[%emt 0:01:12]} 22. Qd2 {[%emt 0:02:26]} Nh7 {[%emt 0:00:47]} 23. Nd5 {[%emt 0:01:18]} Qe6 {[%emt 0:00:48]} 24. Nxc7 {[%emt 0:16:03]} Qc4 {[%emt 0:05:07]} 25. Nd5 {[%emt 0:07:01]} f6 {[%emt 0:03:06]} 26. Bxe5 {[%emt 0:03:56]} dxe5 {[%emt 0:03:47]} 27. Ne7+ {[%emt 0:00:11]} Kg7 {[%emt 0:00:25]} 28. Nf5+ {[%emt 0:00:34]} Kh8 {[%emt 0:07:32]} 29. Qxd8 {[%emt 0:00:11]} Kg8 {[%emt 0:01:20]} 30. Qd7 {[%emt 0:01:37]} Rf7 {[%emt 0:04:30]} 31. Nh6+ {[%emt 0:00:06]} Kg7 {[%emt 0:00:03]} 32. Qxf7+ {[%emt 0:00:14]} 1-0

[Event "Niedersachsen-ch A 2024"]
[Site "Verden Aller"]
[Date "2024.01.04"]
[Round "2.27"]
[White "Arndt, Felix"]
[Black "Stiller, Maximilian"]
[Result "1/2-1/2"]
[ECO "D46"]
[WhiteElo "1901"]
[BlackElo "1786"]
[Annotator "NA RC"]
[PlyCount "61"]
[EventDate "2024.01.01"]
[EventType "swiss"]
[EventCountry "GER"]
[SourceTitle "playchess.com"]
[Source "ChessBase"]
[SourceQuality "1"]
[TimeControl "40/5400+30:1800+30"]

1. d4 {[%emt 0:00:04]} c6 {[%emt 0:00:17]} 2. c4 {[%emt 0:00:12]} Nf6 {[%emt 0:00:08]} 3. Nc3 {[%emt 0:00:14]} e6 {[%emt 0:00:25]} 4. Nf3 {[%emt 0:01:12]} d5 {[%emt 0:00:11]} 5. e3 {[%emt 0:00:14]} Nbd7 {[%emt 0:00:24]} 6. Bd3 {[%emt 0:00:27]} Be7 {[%emt 0:01:22]} 7. O-O {[%emt 0:00:13]} O-O {[%emt 0:00:09]} 8. Qe2 {[%emt 0:00:17]} dxc4 {[%emt 0:00:35]} 9. Bxc4 {[%emt 0:00:08]} b5 {[%emt 0:00:27]} 10. Bd3 {[%emt 0:00:32]} a6 {[%emt 0:01:30]} 11. Rd1 {[%emt 0:01:52]} Bb7 {[%emt 0:00:29]} 12. a3 {[%emt 0:03:43]} c5 {[%emt 0:06:45]} 13. dxc5 {[%emt 0:03:07]} Bxc5 {[%emt 0:01:23]} 14. b4 {[%emt 0:00:36]} Bb6 {[%emt 0:00:41]} 15. Bb2 {[%emt 0:01:23]} Qe7 {[%emt 0:00:40]} 16. Ng5 {[%emt 0:18:05]} h6 {[%emt 0:04:09]} 17. Nge4 {[%emt 0:03:07]} Rac8 {[%emt 0:02:35]} 18. Nd6 {[%emt 0:03:46]} Rc7 {[%emt 0:05:16]} 19. Nxb7 {[%emt 0:00:07]} Rxb7 {[%emt 0:00:08]} 20. Ne4 {[%emt 0:09:04]} Rc7 {[%emt 0:02:28]} 21. Rac1 {[%emt 0:09:15]} Rfc8 {[%emt 0:01:26]} 22. Rxc7 {[%emt 0:03:30]} Rxc7 {[%emt 0:00:21]} 23. Qf3 {[%emt 0:01:14]} Nd5 {[%emt 0:02:14]} 24. h3 {[%emt 0:06:25]} Rc8 {[%emt 0:04:57]} 25. Ng3 {[%emt 0:05:47]} Ba7 {[%emt 0:02:49]} 26. Nh5 {[%emt 0:03:11]} N7f6 {[%emt 0:01:50]} 27. Nxf6+ {[%emt 0:01:10]} Nxf6 {[%emt 0:00:10]} 28. Bxf6 {[%emt 0:04:16]} gxf6 {[%emt 0:00:58]} 29. Qf4 {[%emt 0:02:55]} Kg7 {[%emt 0:02:32]} 30. Qg4+ {[%emt 0:00:21]} Kh8 {[%emt 0:00:33]} 31. Qf4 {[%emt 0:19:33]} 1/2-1/2

[Event "Niedersachsen-ch A 2024"]
[Site "Verden Aller"]
[Date "2024.01.04"]
[Round "2.28"]
[White "Stummeyer, Dieter"]
[Black "Soellig, Martin"]
[Result "0-1"]
[ECO "C02"]
[WhiteElo "1804"]
[BlackElo "1892"]
[Annotator "NA RC"]
[PlyCount "144"]
[EventDate "2024.01.01"]
[EventType "swiss"]
[EventCountry "GER"]
[SourceTitle "playchess.com"]
[Source "ChessBase"]
[SourceQuality "1"]
[TimeControl "40/5400+30:1800+30"]

1. e4 {[%emt 0:00:02]} e6 {[%emt 0:00:05]} 2. d4 {[%emt 0:00:31]} d5 {[%emt 0:00:05]} 3. e5 {[%emt 0:00:05]} c5 {[%emt 0:00:05]} 4. c3 {[%emt 0:00:04]} Nc6 {[%emt 0:00:07]} 5. Nf3 {[%emt 0:00:04]} Qb6 {[%emt 0:00:10]} 6. a3 {[%emt 0:00:37]} c4 {[%emt 0:01:41]} 7. Nbd2 {[%emt 0:02:15]} Na5 {[%emt 0:00:16]} 8. b3 {[%emt 0:00:57]} cxb3 {[%emt 0:00:44]} 9. Rb1 {[%emt 0:01:29]} Bd7 {[%emt 0:00:57]} 10. c4 {[%emt 0:00:23]} dxc4 {[%emt 0:01:41]} 11. Nxc4 {[%emt 0:00:09]} Nxc4 {[%emt 0:05:01]} 12. Bxc4 {[%emt 0:00:04]} Ba4 {[%emt 0:02:52]} 13. O-O {[%emt 0:01:50]} Ne7 {[%emt 0:01:48]} 14. Bxb3 {[%emt 0:00:43]} Bxb3 {[%emt 0:00:11]} 15. Rxb3 {[%emt 0:00:33]} Qc6 {[%emt 0:02:18]} 16. Qd3 {[%emt 0:04:05]} Nd5 {[%emt 0:02:18]} 17. Bd2 {[%emt 0:01:33]} Be7 {[%emt 0:01:38]} 18. Rc1 {[%emt 0:00:33]} Qd7 {[%emt 0:00:40]} 19. Ng5 {[%emt 0:07:24]} h6 {[%emt 0:03:27]} 20. Ne4 {[%emt 0:00:54]} b6 {[%emt 0:02:41]} 21. Qg3 {[%emt 0:02:31]} Kf8 {[%emt 0:08:43]} 22. Bb4 {[%emt 0:07:38]} Nxb4 {[%emt 0:04:46]} 23. axb4 {[%emt 0:00:02]} Qxd4 {[%emt 0:02:31]} 24. Nd6 {[%emt 0:05:08]} Bxd6 {[%emt 0:05:06]} 25. exd6 {[%emt 0:00:02]} g6 {[%emt 0:01:51]} 26. Rd3 {[%emt 0:00:50]} Qb2 {[%emt 0:01:16]} 27. Rdc3 {[%emt 0:02:07]} Kg7 {[%emt 0:02:17]} 28. Qe5+ {[%emt 0:04:55]} Kh7 {[%emt 0:01:11]} 29. Qf4 {[%emt 0:01:27]} Rhf8 {[%emt 0:01:26]} 30. Rc7 {[%emt 0:01:27]} Kg7 {[%emt 0:01:13]} 31. R7c3 {[%emt 0:01:09]} Rad8 {[%emt 0:01:32]} 32. Qd4+ {[%emt 0:02:35]} Kg8 {[%emt 0:01:33]} 33. d7 {[%emt 0:01:24]} f6 {[%emt 0:04:13]} 34. Qd6 {[%emt 0:01:16]} Kf7 {[%emt 0:01:15]} 35. h3 {[%emt 0:00:23]} Qa2 {[%emt 0:01:03]} 36. Re3 {[%emt 0:01:00]} Qd5 {[%emt 0:00:38]} 37. Qxd5 {[%emt 0:01:54]} exd5 {[%emt 0:00:06]} 38. Rc7 {[%emt 0:00:08]} a5 {[%emt 0:00:55]} 39. bxa5 {[%emt 0:00:05]} bxa5 {[%emt 0:00:08]} 40. Ra7 {[%emt 0:01:07]} a4 {[%emt 0:00:55]} 41. Kf1 {[%emt 0:31:40]} a3 {[%emt 0:30:26]} 42. Rexa3 {[%emt 0:00:45]} Ke6 {[%emt 0:00:10]} 43. R3a6+ {[%emt 0:01:04]} Ke5 {[%emt 0:00:43]} 44. g3 {[%emt 0:00:34]} g5 {[%emt 0:00:47]} 45. Ke2 {[%emt 0:00:27]} Rf7 {[%emt 0:00:35]} 46. f4+ {[%emt 0:03:33]} gxf4 {[%emt 0:00:23]} 47. gxf4+ {[%emt 0:00:43]} Kxf4 {[%emt 0:00:28]} 48. Rd6 {[%emt 0:01:42]} Ke5 {[%emt 0:00:14]} 49. Raa6 {[%emt 0:00:45]} Rdxd7 {[%emt 0:00:24]} 50. Re6+ {[%emt 0:00:22]} Kf5 {[%emt 0:00:33]} 51. Kd3 {[%emt 0:00:49]} d4 {[%emt 0:01:38]} 52. Re1 {[%emt 0:01:40]} Rd5 {[%emt 0:01:58]} 53. Rf1+ {[%emt 0:00:35]} Kg6 {[%emt 0:01:09]} 54. Rf4 {[%emt 0:07:29]} Rf5 {[%emt 0:04:14]} 55. Rg4+ {[%emt 0:00:57]} Rg5 {[%emt 0:00:12]} 56. Kxd4 {[%emt 0:01:02]} Rxg4+ {[%emt 0:00:17]} 57. hxg4 {[%emt 0:00:02]} Kg5 {[%emt 0:00:10]} 58. Kd5 {[%emt 0:00:51]} Re7 {[%emt 0:03:26]} 59. Ra4 {[%emt 0:00:33]} h5 {[%emt 0:01:49]} 60. gxh5 {[%emt 0:00:40]} Kxh5 {[%emt 0:00:06]} 61. Kd6 {[%emt 0:00:06]} Re3 {[%emt 0:01:50]} 62. Ra1 {[%emt 0:03:02]} f5 {[%emt 0:00:17]} 63. Kd5 {[%emt 0:00:52]} f4 {[%emt 0:00:27]} 64. Rg1 {[%emt 0:01:10]} Kh4 {[%emt 0:00:18]} 65. Kd4 {[%emt 0:00:09]} Re8 {[%emt 0:00:36]} 66. Kd3 {[%emt 0:00:45]} f3 {[%emt 0:00:22]} 67. Rg7 {[%emt 0:01:17]} Kh3 {[%emt 0:00:27]} 68. Kd2 {[%emt 0:02:05]} f2 {[%emt 0:00:10]} 69. Rf7 {[%emt 0:01:39]} Kg2 {[%emt 0:00:06]} 70. Rg7+ {[%emt 0:00:04]} Kf1 {[%emt 0:00:08]} 71. Rh7 {[%emt 0:02:04]} Rd8+ {[%emt 0:00:11]} 72. Ke3 {[%emt 0:01:00]} Ke1 {[%emt 0:07:25]} 0-1

[Event "Niedersachsen-ch A 2024"]
[Site "Verden Aller"]
[Date "2024.01.04"]
[Round "2.29"]
[White "Thomas, Jeremy"]
[Black "Nuerenberg, Marius"]
[Result "1-0"]
[ECO "B90"]
[WhiteElo "1893"]
[BlackElo "1764"]
[Annotator "NA RC"]
[PlyCount "55"]
[EventDate "2024.01.01"]
[EventType "swiss"]
[EventCountry "GER"]
[SourceTitle "playchess.com"]
[Source "ChessBase"]
[SourceQuality "1"]
[TimeControl "40/5400+30:1800+30"]

1. e4 {[%emt 0:00:03]} c5 {[%emt 0:00:04]} 2. Nf3 {[%emt 0:00:04]} d6 {[%emt 0:00:03]} 3. d4 {[%emt 0:00:03]} cxd4 {[%emt 0:00:04]} 4. Nxd4 {[%emt 0:00:02]} Nf6 {[%emt 0:00:07]} 5. Nc3 {[%emt 0:00:04]} a6 {[%emt 0:00:03]} 6. Be3 {[%emt 0:00:04]} e5 {[%emt 0:00:04]} 7. Nb3 {[%emt 0:00:04]} Be6 {[%emt 0:00:04]} 8. f3 {[%emt 0:00:45]} Be7 {[%emt 0:00:13]} 9. Qd2 {[%emt 0:00:04]} Nbd7 {[%emt 0:00:03]} 10. g4 {[%emt 0:00:20]} b5 {[%emt 0:00:14]} 11. O-O-O {[%emt 0:01:54]} Nb6 {[%emt 0:02:57]} 12. g5 {[%emt 0:16:38]} b4 {[%emt 0:01:40]} 13. Na4 {[%emt 0:02:14]} Nfd7 {[%emt 0:07:12]} 14. Nxb6 {[%emt 0:05:04]} Nxb6 {[%emt 0:00:09]} 15. Na5 {[%emt 0:01:35]} Qc7 {[%emt 0:13:15]} 16. Qxb4 {[%emt 0:10:02]} Rb8 {[%emt 0:02:04]} 17. Qc3 {[%emt 0:06:08]} Qxc3 {[%emt 0:07:01]} 18. bxc3 {[%emt 0:02:03]} d5 {[%emt 0:13:31]} 19. Nc6 {[%emt 0:01:54]} Ba3+ {[%emt 0:00:06]} 20. Kd2 {[%emt 0:00:09]} Rc8 {[%emt 0:01:30]} 21. Nxe5 {[%emt 0:01:06]} Bb2 {[%emt 0:09:49]} 22. Bd4 {[%emt 0:01:58]} dxe4 {[%emt 0:02:24]} 23. Bxa6 {[%emt 0:00:56]} e3+ {[%emt 0:03:02]} 24. Ke2 {[%emt 0:01:37]} Rxc3 {[%emt 0:03:15]} 25. Bxc3 {[%emt 0:00:20]} Bxc3 {[%emt 0:00:05]} 26. Bb5+ {[%emt 0:00:19]} Ke7 {[%emt 0:00:08]} 27. Nc6+ {[%emt 0:00:08]} Ke8 {[%emt 0:00:18]} 28. Rd8# {[%emt 0:00:02]} 1-0